[Event "Schachsommer 2019"]
[Site "Dresden"]
[Date "2019.08.09"]
[Round "1.3"]
[White "Butscher, Daniel"]
[Black "Dann, Matthias"]
[Result "1-0"]
[ECO "D00"]
[WhiteElo "2126"]
[BlackElo "2527"]
[Annotator "ChessBase"]
[PlyCount "185"]
[EventDate "2019.08.10"]
[EventType "swiss"]
[EventCountry "GER"]
[SourceTitle "playchess.com"]
[Source "ChessBase"]
[SourceQuality "1"]
[TimeControl "40/5400+30:1800+30"]

1. d4 {[%emt 1:30:24]} Nf6 {[%emt 1:30:24]} 2. Nc3 {[%emt 1:30:33]} d5 {[%emt 1:30:46]} 3. Bf4 {[%emt 1:30:51]} g6 {[%emt 1:26:07]} 4. e3 {[%emt 1:30:13]} Bg7 {[%emt 1:26:05]} 5. h4 {[%emt 1:28:47]} h6 {[%emt 1:24:52]} 6. Be2 {[%emt 1:24:14]} c5 {[%emt 1:22:28]} 7. Nb5 {[%emt 1:17:54]} Na6 {[%emt 1:22:47]} 8. Nf3 {[%emt 1:17:23]} Ne4 {[%emt 1:08:38]} 9. a4 {[%emt 1:12:39]} Bf5 {[%emt 1:01:12]} 10. c3 {[%emt 1:11:20]} O-O {[%emt 1:11:50]} 11. Nd2 {[%emt 1:00:01]} Nd6 {[%emt 0:51:18]} 12. g4 {[%emt 0:56:37]} Be6 {[%emt 0:51:25]} 13. g5 {[%emt 0:49:14]} h5 {[%emt 0:51:29]} 14. Rg1 {[%emt 0:47:38]} Bf5 {[%emt 0:43:19]} 15. Nf1 {[%emt 0:44:11]} Ne4 {[%emt 0:23:29]} 16. f3 {[%emt 0:32:45]} Nd6 {[%emt 0:23:55]} 17. Ng3 {[%emt 0:32:55]} Be6 {[%emt 0:22:47]} 18. Nxd6 {[%emt 0:24:52]} exd6 {[%emt 0:22:54]} 19. Qb3 {[%emt 0:24:47]} Qe7 {[%emt 0:25:17]} 20. Kf2 {[%emt 0:24:49]} Nb8 {[%emt 0:20:45]} 21. Rge1 {[%emt 0:23:32]} Nc6 {[%emt 0:18:52]} 22. Rad1 {[%emt 0:20:06]} b6 {[%emt 0:13:19]} 23. Bb5 {[%emt 0:17:23]} Rac8 {[%emt 0:09:38]} 24. Bxc6 {[%emt 0:10:08]} Rxc6 {[%emt 0:10:03]} 25. e4 {[%emt 0:16:31]} f6 {[%emt 0:05:08]} 26. exd5 {[%emt 0:16:16]} c4 {[%emt 0:04:11]} 27. Qb5 {[%emt 0:13:17]} fxg5 {[%emt 0:04:21]} 28. Bxg5 {[%emt 0:07:49]} Qf7 {[%emt 0:04:40]} 29. f4 {[%emt 0:05:10]} Bxd5 {[%emt 0:02:15]} 30. Re7 {[%emt 0:02:15]} a6 {[%emt 0:02:15]} 31. Qxa6 Qxe7 32. Bxe7 {[%emt 0:02:15]} Rxf4+ {[%emt 0:05:48]} 33. Kg1 {[%emt 0:05:48]} Rg4 {[%emt 0:02:19]} 34. Kh2 {[%emt 0:05:37]} Rc7 {[%emt 0:02:16]} 35. Bxd6 {[%emt 0:02:46]} Rf7 {[%emt 0:01:59]} 36. Rd2 {[%emt 0:04:08]} Bf3 {[%emt 0:00:11]} 37. Qc8+ {[%emt 0:03:15]} Kh7 {[%emt 0:00:36]} 38. Rf2 {[%emt 0:03:06]} g5 {[%emt 0:00:18]} 39. hxg5 {[%emt 0:01:26]} Bb7 {[%emt 0:00:12]} 40. Rxf7 {[%emt 0:00:16]} Bxc8 {[%emt 0:00:38]} 41. Rc7 {[%emt 0:24:02]} Be6 {[%emt 0:30:43]} 42. Be7 {[%emt 0:23:49]} Kg6 {[%emt 0:29:00]} 43. Rc6 {[%emt 0:29:30]} Kf7 {[%emt 0:23:41]} 44. Bd8 {[%emt 0:29:52]} Rh4+ {[%emt 0:24:03]} 45. Kg1 {[%emt 0:23:49]} Rg4 {[%emt 0:28:12]} 46. Kf2 {[%emt 0:23:10]} h4 {[%emt 0:28:15]} 47. g6+ {[%emt 0:20:58]} Rxg6 {[%emt 0:20:47]} 48. Bxh4 {[%emt 0:15:49]} Rh6 {[%emt 0:20:22]} 49. Ne4 {[%emt 0:13:45]} Bd5 {[%emt 0:18:53]} 50. Rxh6 {[%emt 0:11:30]} Bxh6 {[%emt 0:19:19]} 51. Nd6+ {[%emt 0:11:51]} Ke6 {[%emt 0:12:21]} 52. Nc8 {[%emt 0:12:16]} Bc1 {[%emt 0:19:38]} 53. Ke2 {[%emt 0:09:50]} Bxb2 {[%emt 0:07:19]} 54. Kd2 {[%emt 0:09:59]} Bc6 {[%emt 0:06:08]} 55. Nxb6 {[%emt 0:09:59]} Ba3 {[%emt 0:06:34]} 56. Nxc4 {[%emt 0:09:34]} Bf8 {[%emt 0:06:39]} 57. a5 {[%emt 0:09:39]} Bb5 {[%emt 0:05:42]} 58. Nb6 {[%emt 0:08:19]} Bd6 {[%emt 0:06:00]} 59. c4 {[%emt 0:08:16]} Bb4+ {[%emt 0:06:17]} 60. Kd3 {[%emt 0:07:22]} Ba6 {[%emt 0:05:30]} 61. d5+ {[%emt 0:06:00]} Kf7 {[%emt 0:04:58]} 62. Kd4 {[%emt 0:05:53]} Bxa5 {[%emt 0:05:22]} 63. Nd7 {[%emt 0:05:42]} Bc8 {[%emt 0:04:30]} 64. Ne5+ {[%emt 0:06:01]} Ke8 {[%emt 0:04:56]} 65. c5 {[%emt 0:05:26]} Bh3 {[%emt 0:04:47]} 66. Nc4 {[%emt 0:05:35]} Bb4 {[%emt 0:04:26]} 67. Nd6+ {[%emt 0:05:26]} Kd7 {[%emt 0:04:43]} 68. Bg3 {[%emt 0:05:13]} Kd8 {[%emt 0:02:05]} 69. Kc4 {[%emt 0:05:21]} Ba3 {[%emt 0:02:18]} 70. Kb5 {[%emt 0:05:26]} Bg2 {[%emt 0:01:15]} 71. Kc6 {[%emt 0:05:39]} Ke7 {[%emt 0:01:32]} 72. Bh4+ {[%emt 0:05:33]} Kf8 {[%emt 0:01:57]} 73. Be1 {[%emt 0:04:30]} Bc1 {[%emt 0:01:57]} 74. Bc3 {[%emt 0:04:30]} Ke7 {[%emt 0:01:54]} 75. Nf5+ {[%emt 0:03:58]} Kd8 {[%emt 0:04:28]} 76. Kd6 {[%emt 0:03:52]} Bh3 {[%emt 0:01:07]} 77. Ke5 {[%emt 0:03:43]} Ba3 {[%emt 0:00:52]} 78. c6 {[%emt 0:01:22]} Kc8 {[%emt 0:00:39]} 79. Nd6+ {[%emt 0:02:32]} Bxd6+ {[%emt 0:00:27]} 80. Kxd6 {[%emt 0:03:00]} Bg2 {[%emt 0:00:48]} 81. Be5 {[%emt 0:02:22]} Bf3 {[%emt 0:01:13]} 82. Kc5 {[%emt 0:02:43]} Bg2 {[%emt 0:01:39]} 83. Bf4 {[%emt 0:03:08]} Bf3 {[%emt 0:02:05]} 84. Kd4 {[%emt 0:03:28]} Bg2 {[%emt 0:02:29]} 85. Ke5 {[%emt 0:03:49]} Bf3 {[%emt 0:02:54]} 86. Kd6 {[%emt 0:03:45]} Bg2 {[%emt 0:03:20]} 87. Kc5 {[%emt 0:04:12]} Bf3 {[%emt 0:03:47]} 88. d6 {[%emt 0:04:39]} Bg4 {[%emt 0:04:13]} 89. Bg5 {[%emt 0:04:57]} Bh3 {[%emt 0:04:37]} 90. Kd4 {[%emt 0:05:21]} Bg4 {[%emt 0:05:04]} 91. Ke5 {[%emt 0:05:45]} Bh3 {[%emt 0:05:30]} 92. Kf6 {[%emt 0:05:59]} Bg4 {[%emt 0:05:55]} 93. Ke7 {[%emt 0:06:25]} 1-0

[Event "Schachsommer 2019"]
[Site "Dresden"]
[Date "2019.08.09"]
[Round "1.4"]
[White "Gajek, Radoslaw"]
[Black "Stabolewski, Andreas"]
[Result "1/2-1/2"]
[ECO "E15"]
[WhiteElo "2423"]
[BlackElo "2121"]
[Annotator "NA"]
[PlyCount "81"]
[EventDate "2019.08.10"]
[EventType "swiss"]
[EventCountry "GER"]
[SourceTitle "playchess.com"]
[Source "ChessBase"]
[SourceQuality "1"]
[TimeControl "40/5400+30:1800+30"]

1. Nf3 {[%emt 1:30:25]} Nf6 {[%emt 1:29:59]} 2. c4 {[%emt 1:29:26]} e6 {[%emt 1:29:24]} 3. d4 {[%emt 1:28:24]} b6 {[%emt 1:29:31]} 4. g3 {[%emt 1:28:48]} Ba6 {[%emt 1:29:27]} 5. b3 {[%emt 1:27:10]} Bb4+ {[%emt 1:27:40]} 6. Bd2 {[%emt 1:26:58]} Be7 {[%emt 1:29:24]} 7. Bg2 {[%emt 1:27:13]} O-O {[%emt 1:28:57]} 8. Nc3 {[%emt 1:27:01]} d5 {[%emt 1:24:05]} 9. cxd5 {[%emt 1:26:00]} exd5 {[%emt 1:23:33]} 10. O-O {[%emt 1:26:19]} Re8 {[%emt 1:21:10]} 11. Qc2 {[%emt 1:21:19]} Nbd7 {[%emt 1:11:09]} 12. Ne5 {[%emt 1:16:59]} Bb7 {[%emt 1:09:34]} 13. Rad1 {[%emt 1:05:15]} c5 {[%emt 0:58:14]} 14. Nxd7 {[%emt 0:56:04]} Qxd7 {[%emt 0:58:15]} 15. Bg5 {[%emt 0:51:34]} cxd4 {[%emt 0:48:25]} 16. Rxd4 {[%emt 0:49:51]} h6 {[%emt 0:45:58]} 17. Nxd5 {[%emt 0:29:26]} Nxd5 {[%emt 0:45:57]} 18. Bxe7 {[%emt 0:29:47]} Qxe7 {[%emt 0:44:43]} 19. Bxd5 {[%emt 0:30:03]} Bxd5 {[%emt 0:43:54]} 20. Rxd5 {[%emt 0:30:28]} Qxe2 {[%emt 0:37:30]} 21. Rd2 {[%emt 0:28:24]} Qe7 {[%emt 0:33:08]} 22. Rfd1 {[%emt 0:22:55]} Rad8 {[%emt 0:23:25]} 23. Rxd8 {[%emt 0:19:21]} Rxd8 {[%emt 0:31:56]} 24. Rxd8+ {[%emt 0:19:47]} Qxd8 {[%emt 0:32:20]} 25. Qe4 {[%emt 0:20:13]} g6 {[%emt 0:26:00]} 26. Kg2 {[%emt 0:26:30]} a5 {[%emt 0:19:54]} 27. a4 {[%emt 0:18:01]} Kg7 {[%emt 0:17:50]} 28. Qc4 {[%emt 0:16:18]} Qf6 {[%emt 0:17:16]} 29. f4 {[%emt 0:14:13]} h5 {[%emt 0:15:30]} 30. Kf3 {[%emt 0:14:31]} Qa1 {[%emt 0:12:29]} 31. Qc2 {[%emt 0:06:42]} Qd4 {[%emt 0:11:17]} 32. h3 {[%emt 0:11:47]} Qd5+ {[%emt 0:09:10]} 33. Kf2 {[%emt 0:09:40]} h4 {[%emt 0:07:38]} 34. Ke2 {[%emt 0:07:38]} Qd4 {[%emt 0:07:38]} 35. gxh4 {[%emt 0:03:22]} Qxf4 {[%emt 0:07:46]} 36. Qc3+ {[%emt 0:03:01]} Qf6 {[%emt 0:07:37]} 37. Qg3 {[%emt 0:02:49]} Qb2+ {[%emt 0:07:04]} 38. Kd1 {[%emt 0:07:34]} Qb1+ {[%emt 0:02:52]} 39. Kd2 {[%emt 0:03:22]} Qb2+ {[%emt 0:02:39]} 40. Kd1 {[%emt 0:03:09]} Qb1+ {[%emt 0:03:04]} 41. Kd2 {[%emt 0:04:19]} 1/2-1/2

[Event "Schachsommer 2019"]
[Site "Dresden"]
[Date "2019.08.09"]
[Round "1.5"]
[White "Walther, Hans-Wolfgang"]
[Black "Mkrtchaian, Lilit"]
[Result "0-1"]
[ECO "B41"]
[WhiteElo "2120"]
[BlackElo "2396"]
[Annotator "NA"]
[PlyCount "58"]
[EventDate "2019.08.10"]
[EventType "swiss"]
[EventCountry "GER"]
[SourceTitle "playchess.com"]
[Source "ChessBase"]
[SourceQuality "1"]
[TimeControl "40/5400+30:1800+30"]

1. d4 {[%emt 1:30:26]} e6 {[%emt 1:29:59]} 2. Nf3 {[%emt 1:29:48]} c5 {[%emt 1:29:50]} 3. c4 {[%emt 1:22:55]} cxd4 {[%emt 1:28:52]} 4. Nxd4 {[%emt 1:23:23]} Nf6 {[%emt 1:23:53]} 5. Nc3 {[%emt 1:29:05]} a6 {[%emt 1:26:34]} 6. e4 {[%emt 1:14:48]} Qc7 {[%emt 1:24:01]} 7. Bd3 {[%emt 1:08:20]} Nc6 {[%emt 1:21:44]} 8. Nxc6 {[%emt 1:08:24]} dxc6 {[%emt 1:17:13]} 9. f4 {[%emt 1:03:01]} e5 {[%emt 1:15:29]} 10. f5 {[%emt 1:15:59]} Bc5 {[%emt 1:15:14]} 11. Qf3 {[%emt 0:45:37]} h5 {[%emt 0:53:36]} 12. g3 {[%emt 0:40:32]} Bd7 {[%emt 0:38:15]} 13. Bd2 {[%emt 0:34:04]} Ng4 {[%emt 0:34:08]} 14. h3 {[%emt 0:30:54]} Nf2 {[%emt 0:31:24]} 15. Rh2 {[%emt 0:31:17]} Nxd3+ {[%emt 0:34:38]} 16. Qxd3 {[%emt 0:31:40]} O-O-O {[%emt 0:34:43]} 17. Qc2 {[%emt 0:35:13]} Bd4 {[%emt 0:33:59]} 18. Ne2 {[%emt 0:27:57]} c5 {[%emt 0:30:34]} 19. Nxd4 {[%emt 0:27:37]} cxd4 {[%emt 0:30:59]} 20. Qd3 {[%emt 0:19:55]} g6 {[%emt 0:28:45]} 21. Bg5 {[%emt 0:11:02]} gxf5 {[%emt 0:21:38]} 22. Bxd8 {[%emt 0:11:13]} Rxd8 {[%emt 0:21:49]} 23. exf5 {[%emt 0:08:47]} Bc6 {[%emt 0:16:35]} 24. Re2 {[%emt 0:03:45]} e4 25. Rxe4 {[%emt 0:04:14]} Bxe4 {[%emt 0:04:44]} 26. Qxe4 {[%emt 0:04:43]} Qxg3+ {[%emt 0:05:13]} 27. Ke2 {[%emt 0:03:04]} d3+ {[%emt 0:11:08]} 28. Kf1 {[%emt 0:02:31]} Rg8 {[%emt 0:03:01]} 29. Qh1 {[%emt 0:02:04]} Qf4+ {[%emt 0:09:45]} 0-1

[Event "Schachsommer 2019"]
[Site "Dresden"]
[Date "2019.08.11"]
[Round "2.2"]
[White "Mkrtchian, Lilit"]
[Black "Koelle, Tobias"]
[Result "0-1"]
[ECO "E97"]
[WhiteElo "2395"]
[BlackElo "2159"]
[Annotator "NA"]
[PlyCount "90"]
[EventDate "2019.08.10"]
[EventType "swiss"]
[EventCountry "GER"]
[SourceTitle "playchess.com"]
[Source "ChessBase"]
[SourceQuality "1"]
[TimeControl "40/5400+30:1800+30"]

1. c4 {[%emt 1:30:30]} g6 {[%emt 1:30:23]} 2. d4 {[%emt 1:29:08]} Bg7 {[%emt 1:30:40]} 3. e4 {[%emt 1:28:33]} d6 {[%emt 1:31:02]} 4. Nc3 {[%emt 1:28:29]} Nf6 {[%emt 1:31:17]} 5. Nf3 {[%emt 1:27:39]} O-O {[%emt 1:31:34]} 6. Be2 {[%emt 1:28:06]} e5 {[%emt 1:31:39]} 7. O-O {[%emt 1:20:43]} Nc6 {[%emt 1:31:53]} 8. Be3 {[%emt 1:20:41]} Ng4 {[%emt 1:27:51]} 9. Bg5 {[%emt 1:20:51]} f6 {[%emt 1:21:21]} 10. Bh4 {[%emt 1:21:07]} h5 {[%emt 1:21:37]} 11. h3 {[%emt 1:02:06]} Nh6 {[%emt 1:02:36]} 12. dxe5 {[%emt 1:02:13]} dxe5 {[%emt 1:25:05]} 13. Qb3 {[%emt 1:02:33]} Qe8 {[%emt 1:03:03]} 14. c5+ {[%emt 1:00:14]} Kh8 {[%emt 1:09:48]} 15. Nd5 {[%emt 0:58:35]} Qf7 {[%emt 4:53:15]} 16. Rfd1 {[%emt 1:05:38]} Rb8 {[%emt 0:52:28]} 17. Qc3 {[%emt 0:51:44]} Be6 {[%emt 0:50:01]} 18. Bc4 {[%emt 0:38:27]} Rbd8 {[%emt 0:41:54]} 19. Rac1 {[%emt 0:22:36]} g5 {[%emt 0:36:15]} 20. Bg3 {[%emt 0:22:52]} g4 {[%emt 0:35:31]} 21. hxg4 {[%emt 0:22:54]} hxg4 {[%emt 0:35:50]} 22. Nh4 {[%emt 0:22:45]} Nd4 {[%emt 0:33:54]} 23. Ne3 {[%emt 0:11:00]} Kh7 {[%emt 0:30:01]} 24. Kf1 {[%emt 0:07:19]} Rd7 {[%emt 0:07:49]} 25. b3 {[%emt 0:03:28]} Rfd8 {[%emt 0:03:58]} 26. Bd3 {[%emt 0:03:03]} Qh5 {[%emt 0:24:07]} 27. Nc2 {[%emt 0:01:36]} Nb5 {[%emt 0:19:19]} 28. Qb4 {[%emt 0:01:53]} c6 {[%emt 0:18:44]} 29. Be2 {[%emt 0:02:04]} Qg5 {[%emt 0:02:34]} 30. Ne3 {[%emt 0:01:10]} Nd4 {[%emt 0:18:15]} 31. Bc4 {[%emt 0:01:18]} Bxc4+ {[%emt 0:17:26]} 32. Qxc4 {[%emt 0:01:26]} b5 {[%emt 0:13:40]} 33. cxb6 {[%emt 0:14:10]} axb6 {[%emt 0:14:08]} 34. Qc3 {[%emt 0:00:13]} Bf8 {[%emt 0:13:42]} 35. Qb2 {[%emt 0:00:18]} Kg8 {[%emt 0:11:41]} 36. b4 {[%emt 0:00:07]} Be7 {[%emt 0:10:54]} 37. Nc4 {[%emt 0:00:24]} b5 {[%emt 0:09:43]} 38. Na5 {[%emt 0:00:49]} f5 {[%emt 0:04:58]} 39. Nxf5 {[%emt 0:05:28]} Nhxf5 {[%emt 0:03:45]} 40. exf5 {[%emt 0:00:41]} Qh6 {[%emt 0:03:21]} 41. f3 {[%emt 0:19:21]} gxf3 {[%emt 0:31:47]} 42. Kf2 {[%emt 0:18:44]} Bh4 {[%emt 0:29:22]} 43. Ra1 Z0 44. Ke1 Z0 45. Nb7 Nc2+ {--- Rd2+} 0-1

[Event "Schachsommer 2019"]
[Site "Dresden"]
[Date "2019.08.11"]
[Round "2.3"]
[White "Schnoor, Ekkehard"]
[Black "Nothnagel, Marian Can"]
[Result "0-1"]
[ECO "C41"]
[WhiteElo "2152"]
[BlackElo "2388"]
[Annotator "NA"]
[PlyCount "76"]
[EventDate "2019.08.10"]
[EventType "swiss"]
[EventCountry "GER"]
[SourceTitle "playchess.com"]
[Source "ChessBase"]
[SourceQuality "1"]
[TimeControl "40/5400+30:1800+30"]

1. e4 {[%emt 1:30:23]} e5 {[%emt 1:30:27]} 2. Nf3 {[%emt 1:30:57]} d6 {[%emt 1:30:56]} 3. d4 {[%emt 1:31:25]} exd4 {[%emt 1:31:25]} 4. Nxd4 {[%emt 1:31:55]} Nf6 {[%emt 1:31:50]} 5. Nc3 {[%emt 1:31:18]} Be7 {[%emt 1:32:18]} 6. g3 {[%emt 1:30:53]} O-O {[%emt 1:32:43]} 7. Bg2 {[%emt 1:31:08]} Nc6 {[%emt 1:33:10]} 8. Nf5 {[%emt 1:10:42]} Bxf5 {[%emt 1:13:30]} 9. exf5 {[%emt 1:10:23]} Na5 {[%emt 1:13:46]} 10. Qd3 {[%emt 0:59:17]} Nd7 {[%emt 1:03:18]} 11. O-O {[%emt 0:53:57]} Ne5 {[%emt 0:44:05]} 12. Qe2 {[%emt 0:48:24]} Re8 {[%emt 0:48:54]} 13. Nd5 {[%emt 0:36:08]} Bf8 {[%emt 0:30:26]} 14. Ne3 {[%emt 0:19:16]} Rb8 {[%emt 0:18:40]} 15. b4 {[%emt 0:13:54]} Nac6 {[%emt 0:18:48]} 16. Qd2 {[%emt 0:13:38]} Qf6 {[%emt 0:18:12]} 17. Rb1 {[%emt 0:11:07]} a6 {[%emt 0:10:48]} 18. Bb2 {[%emt 0:10:49]} Qd8 {[%emt 0:10:51]} 19. a4 {[%emt 0:09:14]} Nd7 {[%emt 0:10:48]} 20. Nd5 {[%emt 0:08:04]} Nce5 {[%emt 0:09:46]} 21. Ne3 {[%emt 0:06:53]} Nb6 {[%emt 0:10:01]} 22. Qd4 {[%emt 0:10:31]} Nxa4 {[%emt 0:08:41]} 23. Ba1 {[%emt 0:05:29]} Nb6 {[%emt 0:07:46]} 24. f4 {[%emt 0:04:46]} Nc6 {[%emt 0:08:07]} 25. Qc3 {[%emt 0:08:07]} d5 {[%emt 0:04:32]} 26. Ng4 {[%emt 0:03:14]} d4 {[%emt 0:08:28]} 27. Qd2 {[%emt 0:02:16]} Nc4 {[%emt 0:04:29]} 28. Qd3 {[%emt 0:02:18]} Ne3 {[%emt 0:04:54]} 29. Nxe3 {[%emt 0:00:57]} dxe3 {[%emt 0:05:18]} 30. Qc4 {[%emt 0:00:28]} Qd7 {[%emt 0:03:35]} 31. f6 {[%emt 0:00:27]} g6 {[%emt 0:02:14]} 32. Rbd1 {[%emt 0:00:27]} Qf5 {[%emt 0:00:57]} 33. Rd5 {[%emt 0:00:19]} Qc8 {[%emt 0:02:22]} 34. f5 {[%emt 0:00:26]} e2 {[%emt 0:02:24]} 35. Re1 {[%emt 0:00:53]} Nxb4 {[%emt 0:01:53]} 36. fxg6 {[%emt 0:02:23]} hxg6 {[%emt 0:02:21]} 37. Rg5 {[%emt 0:00:40]} Qe6 {[%emt 0:01:10]} 38. Qxc7 {[%emt 0:00:10]} Qe3+ {[%emt 0:03:05] --- Ra8+ --- Nd3+} 0-1

[Event "Schachsommer 2019"]
[Site "Dresden"]
[Date "2019.08.11"]
[Round "2.4"]
[White "Kambrath, Yannick"]
[Black "Juergens, Klaus"]
[Result "1-0"]
[ECO "E73"]
[WhiteElo "2344"]
[BlackElo "2156"]
[Annotator "NA"]
[PlyCount "73"]
[EventDate "2019.08.10"]
[EventType "swiss"]
[EventCountry "GER"]
[SourceTitle "playchess.com"]
[Source "ChessBase"]
[SourceQuality "1"]
[TimeControl "40/5400+30:1800+30"]

1. d4 {[%emt 1:30:26]} Nf6 {[%emt 1:30:09]} 2. c4 {[%emt 1:30:14]} g6 {[%emt 1:30:44]} 3. Nc3 {[%emt 1:30:30]} Bg7 {[%emt 1:30:41]} 4. e4 {[%emt 1:30:11]} d6 {[%emt 1:30:58]} 5. Be2 {[%emt 1:30:19]} O-O {[%emt 1:31:11]} 6. Bg5 {[%emt 1:28:00]} h6 {[%emt 1:28:30]} 7. Be3 {[%emt 1:28:23]} c5 {[%emt 1:28:27]} 8. e5 {[%emt 1:20:21]} dxe5 {[%emt 1:20:51]} 9. dxe5 {[%emt 1:20:36]} Qxd1+ {[%emt 1:25:30]} 10. Rxd1 {[%emt 1:20:59]} Ng4 {[%emt 1:22:38]} 11. Bxc5 {[%emt 1:21:20]} Nxe5 {[%emt 1:22:05]} 12. Nd5 {[%emt 1:21:40]} Nbc6 {[%emt 1:20:52]} 13. h3 {[%emt 1:19:20]} g5 {[%emt 1:10:11]} 14. b3 $11 {[%emt 1:13:22]} ({Worse is} 14. Nxe7+ Nxe7 15. Bxe7 Re8 $17) 14... Ng6 {[%emt 1:02:56]} 15. Nf3 {[%emt 1:03:26]} Nf4 {[%emt 0:45:24]} 16. Nxf4 {[%emt 1:03:59]} Bc3+ {[%emt 0:42:55]} 17. Nd2 {[%emt 1:00:54]} gxf4 {[%emt 0:43:08]} 18. O-O {[%emt 1:00:09]} Bf5 {[%emt 0:39:03]} 19. Bf3 {[%emt 0:49:07]} Bd3 {[%emt 0:35:59]} 20. Ne4 {[%emt 0:46:48]} Bxe4 {[%emt 0:29:10]} 21. Bxe4 {[%emt 0:46:54]} Rfd8 {[%emt 0:19:15]} 22. Bxc6 {[%emt 0:43:35]} bxc6 {[%emt 0:19:33]} 23. Bxe7 {[%emt 0:43:50]} Re8 {[%emt 0:15:47]} 24. Rd7 {[%emt 0:41:23]} a5 {[%emt 0:15:43]} 25. Rfd1 {[%emt 0:39:32]} Kg7 {[%emt 0:40:02]} 26. Rb7 {[%emt 0:29:45]} a4 {[%emt 0:11:00]} 27. b4 {[%emt 0:28:37]} a3 {[%emt 0:09:56]} 28. Rd3 {[%emt 0:27:42]} Bf6 {[%emt 0:09:12]} 29. Bxf6+ {[%emt 0:17:50]} Kxf6 {[%emt 0:09:33]} 30. Rdd7 {[%emt 0:18:09]} Re1+ {[%emt 0:18:39]} 31. Kh2 {[%emt 0:18:05]} Ra1 {[%emt 0:07:13]} 32. Rxf7+ {[%emt 0:07:43]} Kg6 {[%emt 0:04:09]} 33. Rxf4 {[%emt 0:06:28]} Rxa2 {[%emt 0:04:25]} 34. Rbf7 {[%emt 0:06:48]} Re2 {[%emt 0:02:20]} 35. R4f6+ {[%emt 0:06:31]} Kg5 {[%emt 0:02:09]} 36. f4+ {[%emt 0:05:52]} Kh5 {[%emt 0:02:20]} 37. Rh7 1-0

[Event "Schachsommer 2019"]
[Site "Dresden"]
[Date "2019.08.11"]
[Round "2.5"]
[White "Zwahr, Paul"]
[Black "Eschke, Lars"]
[Result "1/2-1/2"]
[ECO "B07"]
[WhiteElo "2304"]
[BlackElo "2146"]
[Annotator "NA"]
[PlyCount "145"]
[EventDate "2019.08.10"]
[EventType "swiss"]
[EventCountry "GER"]
[SourceTitle "playchess.com"]
[Source "ChessBase"]
[SourceQuality "1"]
[TimeControl "40/5400+30:1800+30"]

1. e4 {[%emt 1:30:26]} d6 {[%emt 1:29:59]} 2. d4 {[%emt 1:30:23]} Nf6 {[%emt 1:30:53]} 3. Nc3 {[%emt 1:30:43]} g6 {[%emt 1:29:56]} 4. Bg5 {[%emt 1:30:29]} Bg7 {[%emt 1:29:47]} 5. Qd2 {[%emt 1:30:30]} h6 {[%emt 1:29:18]} 6. Bf4 {[%emt 1:29:48]} g5 {[%emt 1:27:13]} 7. Bg3 {[%emt 1:29:22]} Nh5 {[%emt 1:26:33]} 8. Bc4 {[%emt 1:27:03]} Nd7 {[%emt 1:10:37]} 9. Nge2 {[%emt 1:11:07]} c5 {[%emt 0:52:23]} 10. O-O-O {[%emt 1:11:29]} a6 {[%emt 0:42:14]} 11. dxc5 {[%emt 1:00:21]} Nxc5 {[%emt 0:42:03]} 12. h4 {[%emt 0:50:25]} Nxg3 {[%emt 0:23:37]} 13. Nxg3 {[%emt 0:47:44]} Bg4 {[%emt 0:20:24]} 14. f3 {[%emt 0:45:07]} Be5 {[%emt 0:20:13]} 15. Nge2 {[%emt 0:33:58]} Be6 {[%emt 0:20:37]} 16. Bxe6 {[%emt 0:33:47]} Nxe6 {[%emt 0:21:00]} 17. hxg5 {[%emt 0:33:24]} hxg5 {[%emt 0:21:05]} 18. Rxh8+ {[%emt 0:30:57]} Bxh8 {[%emt 0:21:28]} 19. Nd5 {[%emt 0:21:58]} Be5 {[%emt 0:10:44]} 20. g3 {[%emt 0:29:52]} Bg7 {[%emt 0:06:03]} 21. Rh1 {[%emt 0:17:21]} Rc8 {[%emt 0:04:12]} 22. Kb1 {[%emt 0:14:49]} Qd7 {[%emt 0:01:42]} 23. c3 {[%emt 0:10:17]} Qb5 {[%emt 0:01:37]} 24. Ka1 {[%emt 0:08:15]} Rc6 {[%emt 0:01:20]} 25. Nd4 {[%emt 0:05:06]} Nxd4 {[%emt 0:01:25]} 26. cxd4 {[%emt 0:05:30]} e6 {[%emt 0:00:02]} 27. Qxg5 {[%emt 0:05:01]} exd5 {[%emt 0:00:29]} 28. Qxg7 {[%emt 0:05:13]} Ke7 {[%emt 0:00:02]} 29. Qg5+ {[%emt 0:02:53]} Kd7 {[%emt 0:00:31]} 30. exd5 {[%emt 0:01:01]} Rb6 {[%emt 0:00:26]} 31. Rb1 {[%emt 0:00:24]} Qe2 {[%emt 0:00:15]} 32. Qf5+ {[%emt 0:00:45]} Kc7 {[%emt 0:00:40]} 33. Qe4 {[%emt 0:01:10]} Qd2 {[%emt 0:00:55]} 34. g4 {[%emt 0:00:03]} Kb8 {[%emt 0:00:53]} 35. Qe8+ {[%emt 0:00:01]} Ka7 {[%emt 0:01:18]} 36. Qe1 {[%emt 0:00:14]} Qxd4 {[%emt 0:01:25]} 37. Qe2 {[%emt 0:00:11]} Qxd5 {[%emt 0:01:32]} 38. Qe3 {[%emt 0:00:11]} Qb5 {[%emt 0:01:36]} 39. Qf2 {[%emt 0:00:13]} Qc5 {[%emt 0:01:36]} 40. Qd2 {[%emt 0:01:36]} Qb5 {[%emt 0:00:13]} 41. Qf2 {[%emt 0:00:13]} Qc5 {[%emt 0:00:53]} 42. Qd2 {[%emt 0:00:18]} Qb4 {[%emt 0:00:04]} 43. Qd5 {[%emt 0:30:34]} f6 {[%emt 0:28:07]} 44. Qd3 {[%emt 0:28:37]} a5 {[%emt 0:18:09]} 45. Qe3 {[%emt 0:18:39]} Ka6 {[%emt 0:16:14]} 46. f4 {[%emt 0:19:41]} Qc5 {[%emt 0:14:37]} 47. Qd3+ {[%emt 0:15:07]} Qb5 {[%emt 0:14:31]} 48. Qd4 {[%emt 0:19:35]} Qe2 {[%emt 0:11:57]} 49. Qxf6 {[%emt 0:12:27]} Qxg4 {[%emt 0:16:19]} 50. a3 {[%emt 0:12:51]} Qe2 {[%emt 0:14:51]} 51. Qd4 {[%emt 0:09:47]} Qb5 {[%emt 0:08:45]} 52. Rg1 {[%emt 0:12:01]} Qc5 {[%emt 0:12:31]} 53. Qd3+ {[%emt 0:11:09]} Qb5 {[%emt 0:06:08]} 54. Qd2 {[%emt 0:06:38]} d5 {[%emt 0:04:27]} 55. Rd1 {[%emt 0:04:57]} Qc4 {[%emt 0:03:15]} 56. Rc1 {[%emt 0:03:45]} Qb5 {[%emt 0:01:53]} 57. Qd4 {[%emt 0:07:26]} Rc6 {[%emt 0:02:08]} 58. Rxc6+ {[%emt 0:03:34]} bxc6 {[%emt 0:02:33]} 59. Qf2 {[%emt 0:03:42]} Qc4 {[%emt 0:01:27]} 60. f5 {[%emt 0:01:57]} d4 {[%emt 0:01:43]} 61. f6 {[%emt 0:02:29]} d3 {[%emt 0:02:59]} 62. f7 {[%emt 0:01:23]} d2 {[%emt 0:02:15]} 63. Qxd2 {[%emt 0:01:32]} Qxf7 {[%emt 0:02:36]} 64. Qd3+ {[%emt 0:01:09]} Kb6 {[%emt 0:01:39]} 65. Kb1 {[%emt 0:03:28]} Qf2 {[%emt 0:02:35]} 66. Qd8+ {[%emt 0:03:05]} Ka6 {[%emt 0:02:07]} 67. Qa8+ {[%emt 0:02:37]} Kb6 {[%emt 0:01:00]} 68. Qb8+ {[%emt 0:00:46]} Ka6 {[%emt 0:02:56]} 69. Qb3 {[%emt 0:00:31]} Qe1+ {[%emt 0:02:52]} 70. Ka2 {[%emt 0:00:54]} Qe2 {[%emt 0:01:24]} 71. Qc3 {[%emt 0:03:13]} Qe6+ {[%emt 0:00:50]} 72. Ka1 {[%emt 0:03:18]} Qe4 {[%emt 0:01:07]} 73. Qc1 {[%emt 0:00:06]} 1/2-1/2